[Event "EYCC Open-U10 2019"]
[Site "Bratislava"]
[Date "2019.08.07"]
[Round "6.28"]
[White "Englisch, Tobias"]
[Black "Misiuk, Martynas"]
[Result "1/2-1/2"]
[ECO "B27"]
[WhiteElo "1643"]
[BlackElo "1304"]
[Annotator "NA"]
[PlyCount "45"]
[EventDate "2019.08.02"]
[EventType "swiss"]
[EventCountry "SVK"]
[SourceTitle "playchess.com"]
[Source "ChessBase"]
[SourceQuality "1"]
[TimeControl "40/5400+30:1800+30"]

1. e4 {[%emt 0:00:00]} c5 {[%emt 0:00:00]} 2. Nf3 {[%emt 0:00:00]} g6 {[%emt 0:00:00]} 3. c4 {[%emt 0:00:00]} Nc6 {[%emt 0:01:26]} 4. d4 {[%emt 0:00:00]} cxd4 {[%emt 0:00:25]} 5. Nxd4 {[%emt 0:00:06]} Nf6 {[%emt 0:01:24]} 6. Nc3 {[%emt 0:00:16]} d6 {[%emt 0:02:16]} 7. Be2 {[%emt 0:01:37]} Bg7 {[%emt 0:01:18]} 8. Be3 {[%emt 0:00:40]} O-O {[%emt 0:00:55]} 9. O-O {[%emt 0:00:40]} Ne5 {[%emt 0:02:16]} 10. h3 {[%emt 0:05:12]} Bd7 {[%emt 0:05:09]} 11. Qd2 {[%emt 0:28:48]} Rc8 {[%emt 0:01:32]} 12. b3 {[%emt 0:00:43]} a6 {[%emt 0:07:10]} 13. Rac1 {[%emt 0:05:01]} Re8 {[%emt 0:14:27]} 14. Rfd1 {[%emt 0:09:43]} Qa5 {[%emt 0:02:12]} 15. Qe1 {[%emt 0:06:41]} Kh8 {[%emt 0:04:31]} 16. f4 {[%emt 0:07:23]} Nc6 {[%emt 0:01:15]} 17. Bf3 {[%emt 0:01:32]} Nxd4 {[%emt 0:00:33]} 18. Bxd4 {[%emt 0:00:11]} e5 {[%emt 0:01:17]} 19. Be3 {[%emt 0:00:33]} b5 {[%emt 0:01:53]} 20. cxb5 {[%emt 0:04:39]} exf4 {[%emt 0:01:06]} 21. Bxf4 {[%emt 0:00:32]} axb5 {[%emt 0:05:47]} 22. Bxd6 {[%emt 0:02:31]} b4 {[%emt 0:04:17]} 23. Ne2 {[%emt 0:01:24]} 1/2-1/2

[Event "EYCC Open-U10 2019"]
[Site "Bratislava"]
[Date "2019.08.07"]
[Round "6.29"]
[White "Bukvaj, Martin"]
[Black "Rudnev, Andrei"]
[Result "1/2-1/2"]
[ECO "B13"]
[WhiteElo "1220"]
[BlackElo "1607"]
[Annotator "NA"]
[PlyCount "67"]
[EventDate "2019.08.02"]
[EventType "swiss"]
[EventCountry "SVK"]
[SourceTitle "playchess.com"]
[Source "ChessBase"]
[SourceQuality "1"]
[TimeControl "40/5400+30:1800+30"]

1. e4 {[%emt 0:00:00]} c6 {[%emt 0:00:00]} 2. d4 {[%emt 0:00:00]} d5 {[%emt 0:00:00]} 3. exd5 {[%emt 0:00:00]} cxd5 {[%emt 0:00:00]} 4. Bd3 {[%emt 0:00:00]} Nc6 {[%emt 0:00:00]} 5. c3 {[%emt 0:00:00]} Qc7 {[%emt 0:00:26]} 6. Nf3 {[%emt 0:00:58]} Bg4 {[%emt 0:02:11]} 7. O-O {[%emt 0:00:26]} Nf6 {[%emt 0:00:51]} 8. Be3 {[%emt 0:01:22]} e6 {[%emt 0:00:46]} 9. Nbd2 {[%emt 0:00:58]} Be7 {[%emt 0:06:34]} 10. Re1 {[%emt 0:01:42]} O-O {[%emt 0:00:31]} 11. h3 {[%emt 0:02:52]} Bh5 {[%emt 0:00:16]} 12. Nf1 {[%emt 0:00:09]} Rab8 {[%emt 0:09:33]} 13. Ng3 {[%emt 0:01:44]} Bg6 {[%emt 0:00:42]} 14. Bxg6 {[%emt 0:00:06]} hxg6 {[%emt 0:00:15]} 15. Nd2 {[%emt 0:02:00]} b5 {[%emt 0:03:39]} 16. a3 {[%emt 0:02:18]} a5 {[%emt 0:04:00]} 17. h4 {[%emt 0:02:06]} Bd6 {[%emt 0:10:46]} 18. Ndf1 b4 {[%emt 0:04:22]} 19. axb4 {[%emt 0:03:31]} axb4 {[%emt 0:00:11]} 20. h5 {[%emt 0:00:48]} gxh5 {[%emt 0:01:51]} 21. Nxh5 {[%emt 0:00:07]} Nxh5 {[%emt 0:01:15]} 22. Qxh5 {[%emt 0:00:09]} bxc3 {[%emt 0:03:30]} 23. bxc3 {[%emt 0:01:01]} Ne7 {[%emt 0:08:51]} 24. Bd2 {[%emt 0:00:47]} Rb2 {[%emt 0:10:29]} 25. Re3 {[%emt 0:01:27]} g6 {[%emt 0:14:41]} 26. Qh1 {[%emt 0:03:01]} f5 {[%emt 0:11:03]} 27. Rh3 {[%emt 0:00:22]} Kf7 {[%emt 0:00:44]} 28. Rh7+ {[%emt 0:00:22]} Ke8 {[%emt 0:00:04]} 29. Ra8+ {[%emt 0:00:35]} Rb8 {[%emt 0:00:08]} 30. Rxb8+ {[%emt 0:00:34]} Qxb8 {[%emt 0:00:05]} 31. Bg5 {[%emt 0:00:20]} Kd7 {[%emt 0:02:19]} 32. Qh6 {[%emt 0:00:43]} Rg8 {[%emt 0:01:57]} 33. Qh4 {[%emt 0:01:20]} Qd8 {[%emt 0:00:50]} 34. g3 {[%emt 0:01:11]} 1/2-1/2

[Event "EYCC Open-U10 2019"]
[Site "Bratislava"]
[Date "2019.08.07"]
[Round "6.30"]
[White "Gusev, Mikhail"]
[Black "Rabinovich, Yoav"]
[Result "1-0"]
[ECO "C07"]
[WhiteElo "1575"]
[BlackElo "1193"]
[Annotator "NA"]
[PlyCount "101"]
[EventDate "2019.08.02"]
[EventType "swiss"]
[EventCountry "SVK"]
[SourceTitle "playchess.com"]
[Source "ChessBase"]
[SourceQuality "1"]
[TimeControl "40/5400+30:1800+30"]

1. e4 e6 2. d4 d5 3. Nd2 c5 4. Ngf3 cxd4 5. Nxd4 Nf6 6. e5 Nfd7 7. f4 Qb6 8. N2b3 Nc5 9. c3 Nxb3 10. Qxb3 Bc5 11. Be3 Bd7 12. Bd3 Nc6 13. Qxb6 Bxb6 14. Ke2 h6 15. Nb5 O-O 16. Bxb6 axb6 17. Nd6 Ra7 18. b4 Rfa8 19. Kf3 Rxa2 20. Rxa2 Rxa2 21. Nxb7 Ra3 22. Rc1 d4 23. b5 Na7 24. Nd6 Rxc3 25. Rxc3 dxc3 26. Ke2 Nc8 27. Nxc8 Bxc8 28. Be4 f5 29. Bc6 g5 30. fxg5 hxg5 31. Kd3 Kg7 32. Kxc3 Kh6 33. Kd4 Kh5 34. Ke3 Kg4 35. Bf3+ Kh4 36. Kd3 f4 37. Ke2 g4 38. Bc6 Kg5 39. Kd3 Kh4 40. Ke4 f3 41. gxf3 gxf3 42. Kxf3 Kh3 43. Kf4 Kxh2 44. Kg5 Kg3 45. Kf6 Kf4 46. Ke7 Kxe5 47. Kd8 Kd6 48. Kxc8 Kc5 49. Kb7 e5 50. Ka6 e4 51. Bxe4 1-0

[Event "EYCC Open-U10 2019"]
[Site "Bratislava"]
[Date "2019.08.07"]
[Round "6.31"]
[White "Simbelov, Roman T."]
[Black "Romanov, Vladislav O."]
[Result "1-0"]
[ECO "B72"]
[WhiteElo "1560"]
[BlackElo "1099"]
[Annotator "NA"]
[PlyCount "177"]
[EventDate "2019.08.02"]
[EventType "swiss"]
[EventCountry "SVK"]
[SourceTitle "playchess.com"]
[Source "ChessBase"]
[SourceQuality "1"]
[TimeControl "40/5400+30:1800+30"]

1. e4 c5 2. Nf3 Nc6 3. d4 cxd4 4. Nxd4 Nf6 5. Nc3 d6 6. Be2 g6 7. Be3 Bg7 8. Qd2 h5 9. f3 Bd7 10. h4 Rc8 11. O-O-O a6 12. Bg5 Ne5 13. Nb3 Nc4 14. Bxc4 Rxc4 15. Nd5 Nxd5 16. Qxd5 Qc8 17. Qd2 b5 18. Rhe1 b4 19. Re2 Be6 20. Qd3 Qc7 21. Be3 Rc6 22. Qd2 Bxb3 23. axb3 Qa5 24. Kb1 O-O 25. Qd5 Qxd5 26. exd5 Rc7 27. Bg5 Bf6 28. Re4 Rfc8 29. Rd2 a5 30. g4 Bxg5 31. hxg5 hxg4 32. Rxg4 Kg7 33. Re4 Rh8 34. Rde2 Kf8 35. Kc1 Rh5 36. Rg2 Rh3 37. f4 Rh1+ 38. Kd2 Rb1 39. Re3 Rc5 40. Rd3 Rf1 41. Rh2 Ke8 42. Rd4 Kd7 43. c4 bxc3+ 44. bxc3 Rf3 45. b4 Rcxc3 46. bxa5 Ra3 47. Rh7 Rxa5 48. Ke2 Rb3 49. Rxf7 Ra2+ 50. Rd2 Ra4 51. Rf8 Rh3 52. Kf1 Rf3+ 53. Rf2 Rg3 54. Rb2 Ra7 55. Rbb8 Kc7 56. Rbc8+ Kb7 57. Rb8+ Kc7 58. Rbc8+ Kb7 59. Rb8+ Kc7 60. Rfc8+ Kd7 61. Rd8+ Kc7 62. Rbc8+ Kb7 63. Rc4 Rga3 64. Rd7+ Kb8 65. Rd8+ Kb7 66. Kf2 R3a5 67. Rc3 Ra4 68. Kf3 Ra1 69. Rd7+ Kb8 70. Rxa7 Rxa7 71. f5 gxf5 72. Kf4 Ra1 73. g6 Rg1 74. Rg3 Rf1+ 75. Kg5 f4 76. Rg4 f3 77. g7 f2 78. g8=Q+ Kc7 79. Qf7 Kd7 80. Rg2 Rg1 81. Qxf2 Rxg2+ 82. Qxg2 Kd8 83. Qc2 Kd7 84. Qc6+ Kd8 85. Qb7 Ke8 86. Kg6 Kd8 87. Kf7 e5 88. Ke6 e4 89. Qd7# 1-0

[Event "EYCC Open-U10 2019"]
[Site "Bratislava"]
[Date "2019.08.07"]
[Round "6.32"]
[White "Povshednyi, Ivan"]
[Black "Setina, Vaclav"]
[Result "1-0"]
[ECO "B39"]
[WhiteElo "1872"]
[BlackElo "1415"]
[Annotator "NA"]
[PlyCount "63"]
[EventDate "2019.08.02"]
[EventType "swiss"]
[EventCountry "SVK"]
[SourceTitle "playchess.com"]
[Source "ChessBase"]
[SourceQuality "1"]
[TimeControl "40/5400+30:1800+30"]

1. e4 {[%emt 0:00:00]} c5 {[%emt 0:00:00]} 2. Nf3 {[%emt 0:00:00]} Nc6 {[%emt 0:00:00]} 3. d4 {[%emt 0:00:37]} cxd4 {[%emt 0:00:00]} 4. Nxd4 {[%emt 0:00:01]} g6 {[%emt 0:00:00]} 5. c4 {[%emt 0:00:42]} Bg7 {[%emt 0:00:18]} 6. Be3 {[%emt 0:00:34]} Nf6 {[%emt 0:00:32]} 7. Nc3 {[%emt 0:00:12]} Ng4 {[%emt 0:00:19]} 8. Qxg4 {[%emt 0:00:31]} Nxd4 {[%emt 0:00:04]} 9. Qd1 {[%emt 0:00:31]} Ne6 {[%emt 0:00:14]} 10. Qd2 {[%emt 0:01:53]} O-O {[%emt 0:00:59]} 11. Be2 {[%emt 0:00:10]} b6 {[%emt 0:01:46]} 12. O-O {[%emt 0:00:38]} Bb7 {[%emt 0:00:45]} 13. f3 {[%emt 0:04:28]} d6 {[%emt 0:05:27]} 14. Rac1 {[%emt 0:01:01]} Qd7 {[%emt 0:09:21]} 15. Rfd1 {[%emt 0:01:22]} Rfd8 {[%emt 0:08:37]} 16. Nd5 {[%emt 0:08:12]} Rac8 {[%emt 0:16:53]} 17. b3 {[%emt 0:01:48]} Nc7 {[%emt 0:13:17]} 18. a4 {[%emt 0:06:57]} Bxd5 {[%emt 0:04:33]} 19. cxd5 {[%emt 0:00:53]} b5 {[%emt 0:09:12]} 20. Qa5 {[%emt 0:06:41]} bxa4 {[%emt 0:08:25]} 21. bxa4 {[%emt 0:00:15]} Ne8 {[%emt 0:09:33]} 22. Bb5 {[%emt 0:13:05]} Qb7 {[%emt 0:01:30]} 23. Bc6 {[%emt 0:01:57]} Qc7 {[%emt 0:02:06]} 24. Qxa7 {[%emt 0:00:58]} Qxa7 {[%emt 0:05:56]} 25. Bxa7 {[%emt 0:00:06]} Nf6 {[%emt 0:00:52]} 26. Bb6 {[%emt 0:00:12]} Rf8 {[%emt 0:00:02]} 27. a5 {[%emt 0:00:09]} Rb8 {[%emt 0:00:28]} 28. Rb1 {[%emt 0:00:53]} Rfc8 {[%emt 0:01:23]} 29. a6 {[%emt 0:02:28]} Bh6 {[%emt 0:01:18]} 30. Kf2 {[%emt 0:01:42]} Ra8 {[%emt 0:00:38]} 31. a7 {[%emt 0:01:20]} Bg7 {[%emt 0:00:27]} 32. Be3 {[%emt 0:01:46]} 1-0

[Event "EYCC Open-U10 2019"]
[Site "Bratislava"]
[Date "2019.08.07"]
[Round "6.33"]
[White "Biyiksiz, Ali Batuhan"]
[Black "Sapocinic, Semion"]
[Result "0-1"]
[ECO "B51"]
[WhiteElo "1378"]
[BlackElo "1781"]
[Annotator "NA"]
[PlyCount "112"]
[EventDate "2019.08.02"]
[EventType "swiss"]
[EventCountry "SVK"]
[SourceTitle "playchess.com"]
[Source "ChessBase"]
[SourceQuality "1"]
[TimeControl "40/5400+30:1800+30"]

1. e4 c5 2. Nf3 d6 3. Bb5+ Nd7 4. O-O a6 5. Bxd7+ Bxd7 6. c3 Nf6 7. Re1 e6 8. d4 Be7 9. a3 Bc6 10. Nbd2 O-O 11. b4 cxb4 12. cxb4 a5 13. Bb2 axb4 14. axb4 Rxa1 15. Qxa1 d5 16. e5 Nd7 17. Ba3 Nb6 18. Rb1 Bb5 19. Qc3 Qd7 20. Rc1 Rc8 21. Qa1 Ra8 22. Qc3 Rc8 23. Qa1 Nc4 24. Nxc4 Bxc4 25. Qc3 Ra8 26. Ra1 Qb5 27. Nd2 h6 28. Nxc4 Qxc4 29. Qb2 Bxb4 30. Bxb4 Rxa1+ 31. Qxa1 Qxb4 32. Kf1 Qc4+ 33. Ke1 b5 34. Kd2 b4 35. g3 b3 36. Qb2 Qb4+ 37. Kd3 Qb5+ 38. Kd2 Qc4 39. f4 g5 40. fxg5 hxg5 41. Qc3 Qxc3+ 42. Kxc3 g4 43. Kxb3 f6 44. Kc3 Kf7 45. exf6 Kxf6 46. Kd3 Kf5 47. Ke3 e5 48. Kd3 exd4 49. Kxd4 Ke6 50. Kd3 Ke5 51. Ke3 d4+ 52. Kd3 Kd5 53. Kc2 Ke4 54. Kd2 d3 55. Kc3 Ke3 56. Kc4 d2 0-1

[Event "EYCC Open-U10 2019"]
[Site "Bratislava"]
[Date "2019.08.07"]
[Round "6.34"]
[White "Jalovec, Igor"]
[Black "Jaakkola, Niklas"]
[Result "1/2-1/2"]
[ECO "B22"]
[WhiteElo "1465"]
[BlackElo "1587"]
[Annotator "NA"]
[PlyCount "115"]
[EventDate "2019.08.02"]
[EventType "swiss"]
[EventCountry "SVK"]
[SourceTitle "playchess.com"]
[Source "ChessBase"]
[SourceQuality "1"]
[TimeControl "40/5400+30:1800+30"]

1. e4 {[%emt 0:00:14]} c5 {[%emt 0:00:02]} 2. c3 {[%emt 0:00:45]} Nf6 {[%emt 0:00:43]} 3. e5 {[%emt 0:00:48]} Nd5 {[%emt 0:00:23]} 4. d4 {[%emt 0:02:37]} cxd4 {[%emt 0:00:09]} 5. Nf3 {[%emt 0:00:28]} Nc6 {[%emt 0:00:11]} 6. cxd4 {[%emt 0:01:04]} d6 {[%emt 0:01:58]} 7. Bc4 {[%emt 0:01:50]} Nb6 {[%emt 0:00:33]} 8. Bb5 {[%emt 0:01:34]} dxe5 {[%emt 0:03:25]} 9. Nxe5 {[%emt 0:10:01]} Bd7 {[%emt 0:03:52]} 10. Bxc6 {[%emt 0:07:49]} Bxc6 {[%emt 0:05:56]} 11. Nxc6 {[%emt 0:02:15]} bxc6 {[%emt 0:01:33]} 12. O-O {[%emt 0:01:35]} g6 {[%emt 0:18:22]} 13. Be3 {[%emt 0:10:37]} Bg7 {[%emt 0:02:50]} 14. Nc3 {[%emt 0:01:14]} O-O {[%emt 0:06:10]} 15. Rc1 {[%emt 0:02:06]} Nc4 {[%emt 0:13:59]} 16. b3 {[%emt 0:12:27]} Nxe3 {[%emt 0:01:58]} 17. fxe3 {[%emt 0:00:07]} f5 {[%emt 0:22:04]} 18. Qf3 {[%emt 0:05:54]} Qd6 {[%emt 0:02:02]} 19. Ne2 {[%emt 0:05:55]} Rac8 {[%emt 0:00:19]} 20. Rc5 {[%emt 0:04:08]} Rc7 {[%emt 0:02:46]} 21. Rfc1 {[%emt 0:03:55]} Rfc8 {[%emt 0:00:19]} 22. Qf4 {[%emt 0:05:31]} Kh8 {[%emt 0:05:20]} 23. g3 {[%emt 0:06:07]} Kg8 {[%emt 0:01:33]} 24. b4 {[%emt 0:00:52]} a6 {[%emt 0:01:25]} 25. a3 {[%emt 0:02:42]} Kh8 {[%emt 0:00:36]} 26. Kh1 {[%emt 0:01:30]} Kg8 {[%emt 0:01:12]} 27. Ng1 {[%emt 0:00:06]} Qxf4 {[%emt 0:02:17]} 28. gxf4 {[%emt 0:00:06]} e6 {[%emt 0:00:07]} 29. Nf3 {[%emt 0:00:10]} h6 {[%emt 0:00:55]} 30. Ne5 {[%emt 0:00:42]} Bxe5 {[%emt 0:00:24]} 31. Rxe5 {[%emt 0:01:13]} Kf7 {[%emt 0:00:11]} 32. Ra5 {[%emt 0:00:33]} Ra7 {[%emt 0:00:24]} 33. b5 {[%emt 0:01:22]} Ke7 {[%emt 0:00:45]} 34. Rxc6 {[%emt 0:02:10]} Rxc6 {[%emt 0:00:10]} 35. bxc6 {[%emt 0:00:30]} Kd6 {[%emt 0:00:13]} 36. Kg2 {[%emt 0:04:28]} Kxc6 {[%emt 0:00:10]} 37. Kf3 {[%emt 0:00:16]} Kd6 {[%emt 0:00:22]} 38. h3 {[%emt 0:00:41]} Ra8 {[%emt 0:00:48]} 39. a4 {[%emt 0:00:24]} Ra7 {[%emt 0:00:13]} 40. Ke2 {[%emt 0:00:00]} Kc6 {[%emt 0:00:00]} 41. Rc5+ {[%emt 0:01:21]} Kd7 {[%emt 0:01:13]} 42. Ra5 {[%emt 0:00:11]} Kd6 {[%emt 0:00:51]} 43. Kd3 {[%emt 0:05:20]} Ra8 {[%emt 0:00:41]} 44. e4 {[%emt 0:09:43]} Kc6 {[%emt 0:04:35]} 45. Rc5+ {[%emt 0:04:37]} Kd7 {[%emt 0:03:14]} 46. d5 {[%emt 0:04:36]} Rb8 {[%emt 0:06:35]} 47. dxe6+ {[%emt 0:00:56]} Kxe6 {[%emt 0:00:11]} 48. exf5+ {[%emt 0:01:07]} gxf5 {[%emt 0:00:57]} 49. Rc6+ {[%emt 0:01:20]} Kd5 {[%emt 0:00:00]} 50. Rxh6 {[%emt 0:01:04]} Rb3+ {[%emt 0:01:13]} 51. Kc2 {[%emt 0:00:17]} Ra3 {[%emt 0:00:31]} 52. Rxa6 {[%emt 0:00:48]} Rxh3 {[%emt 0:00:09]} 53. Rb6 {[%emt 0:00:24]} Ra3 {[%emt 0:00:47]} 54. Rb5+ {[%emt 0:00:35]} Kc4 {[%emt 0:00:54]} 55. Rxf5 {[%emt 0:02:40]} Rxa4 {[%emt 0:00:42]} 56. Rh5 {[%emt 0:00:38]} Ra2+ {[%emt 0:00:48]} 57. Kb1 {[%emt 0:00:08]} Rf2 {[%emt 0:00:07]} 58. Rf5 1/2-1/2

[Event "EYCC Open-U10 2019"]
[Site "Bratislava"]
[Date "2019.08.07"]
[Round "6.35"]
[White "Oglaza, Dawid"]
[Black "Gut, Lionel"]
[Result "0-1"]
[ECO "B41"]
[WhiteElo "1284"]
[BlackElo "1583"]
[Annotator "NA"]
[PlyCount "90"]
[EventDate "2019.08.02"]
[EventType "swiss"]
[EventCountry "SVK"]
[SourceTitle "playchess.com"]
[Source "ChessBase"]
[SourceQuality "1"]
[TimeControl "40/5400+30:1800+30"]

1. e4 {[%emt 0:00:00]} c5 {[%emt 0:00:00]} 2. Nf3 {[%emt 0:00:14]} e6 {[%emt 0:00:13]} 3. d4 {[%emt 0:00:27]} cxd4 {[%emt 0:00:22]} 4. Nxd4 {[%emt 0:00:21]} a6 {[%emt 0:00:04]} 5. Be2 {[%emt 0:00:47]} Qc7 {[%emt 0:00:18]} 6. O-O {[%emt 0:00:36]} Nf6 {[%emt 0:00:06]} 7. Nc3 {[%emt 0:01:14]} b5 {[%emt 0:02:45]} 8. a3 {[%emt 0:00:22]} Bb7 {[%emt 0:00:10]} 9. Qd3 {[%emt 0:04:15]} d5 {[%emt 0:02:23]} 10. Bf3 {[%emt 0:02:48]} Nbd7 {[%emt 0:10:05]} 11. exd5 {[%emt 0:04:09]} Ne5 {[%emt 0:03:17]} 12. Qe2 {[%emt 0:04:21]} Nxf3+ {[%emt 0:00:08]} 13. Nxf3 {[%emt 0:01:38]} Nxd5 {[%emt 0:00:08]} 14. Nxd5 {[%emt 0:00:44]} Bxd5 {[%emt 0:00:05]} 15. Rd1 {[%emt 0:01:22]} Be7 {[%emt 0:00:32]} 16. Ne5 {[%emt 0:10:23]} O-O {[%emt 0:02:06]} 17. Nd3 {[%emt 0:06:06]} Rac8 {[%emt 0:05:41]} 18. Ne1 {[%emt 0:11:27]} Bd6 {[%emt 0:03:47]} 19. h3 {[%emt 0:01:31]} Bh2+ {[%emt 0:09:19]} 20. Kh1 {[%emt 0:01:03]} Bd6 {[%emt 0:03:06]} 21. b3 {[%emt 0:01:59]} Qe7 {[%emt 0:00:51]} 22. Bb2 {[%emt 0:08:35]} Qh4 {[%emt 0:04:24]} 23. Qg4 {[%emt 0:03:54]} Qxg4 {[%emt 0:00:20]} 24. hxg4 {[%emt 0:00:15]} Bc5 {[%emt 0:00:17]} 25. Nd3 {[%emt 0:01:03]} Be7 {[%emt 0:05:29]} 26. Rac1 {[%emt 0:01:15]} Rfd8 {[%emt 0:03:15]} 27. Nb4 {[%emt 0:01:56]} a5 {[%emt 0:09:30]} 28. Nxd5 {[%emt 0:00:16]} Rxd5 {[%emt 0:00:08]} 29. Rxd5 {[%emt 0:00:33]} exd5 {[%emt 0:00:05]} 30. c3 {[%emt 0:00:34]} Bf6 {[%emt 0:00:13]} 31. Kg1 {[%emt 0:01:58]} Kf8 {[%emt 0:00:30]} 32. Kf1 {[%emt 0:00:31]} Ke7 {[%emt 0:02:25]} 33. f4 {[%emt 0:01:12]} h6 {[%emt 0:00:24]} 34. Ke2 {[%emt 0:00:42]} Kd7 {[%emt 0:01:17]} 35. b4 {[%emt 0:01:56]} axb4 {[%emt 0:00:14]} 36. axb4 {[%emt 0:00:15]} Rc4 {[%emt 0:00:48]} 37. g3 {[%emt 0:02:09]} Kc6 {[%emt 0:18:34]} 38. Kf3 {[%emt 0:03:10]} d4 {[%emt 0:05:19]} 39. cxd4 {[%emt 0:00:20]} Rxc1 {[%emt 0:00:09]} 40. Bxc1 {[%emt 0:00:00]} Kd5 {[%emt 0:00:00]} 41. g5 {[%emt 0:04:52]} hxg5 {[%emt 0:03:56]} 42. fxg5 {[%emt 0:00:16]} Bxd4 {[%emt 0:00:10]} 43. Kf4 {[%emt 0:04:49]} Be5+ {[%emt 0:00:11]} 44. Kg4 {[%emt 0:01:21]} g6 {[%emt 0:00:18]} 45. Bf4 {[%emt 0:01:25]} Bc3 {[%emt 0:00:13]} 0-1

[Event "EYCC Open-U10 2019"]
[Site "Bratislava"]
[Date "2019.08.07"]
[Round "6.36"]
[White "Ribstein, Orel"]
[Black "Pereverzev, Timofei"]
[Result "0-1"]
[ECO "D26"]
[WhiteElo "1662"]
[BlackElo "1332"]
[Annotator "NA"]
[PlyCount "70"]
[EventDate "2019.08.02"]
[EventType "swiss"]
[EventCountry "SVK"]
[SourceTitle "playchess.com"]
[Source "ChessBase"]
[SourceQuality "1"]
[TimeControl "40/5400+30:1800+30"]

1. d4 {[%emt 0:00:00]} d5 {[%emt 0:00:00]} 2. Nf3 {[%emt 0:00:00]} Nf6 {[%emt 0:00:00]} 3. c4 {[%emt 0:00:00]} dxc4 {[%emt 0:00:13]} 4. e3 {[%emt 0:00:29]} e6 {[%emt 0:00:10]} 5. Bxc4 {[%emt 0:00:10]} a6 {[%emt 0:00:53]} 6. O-O {[%emt 0:00:40]} b5 {[%emt 0:00:08]} 7. Bd3 {[%emt 0:00:28]} Bb7 {[%emt 0:00:43]} 8. a4 {[%emt 0:01:18]} b4 {[%emt 0:02:22]} 9. Qe2 {[%emt 0:01:47]} c5 {[%emt 0:05:49]} 10. dxc5 {[%emt 0:00:43]} Bxc5 {[%emt 0:03:00]} 11. Nbd2 {[%emt 0:00:48]} O-O {[%emt 0:01:19]} 12. e4 {[%emt 0:01:08]} Nc6 {[%emt 0:02:16]} 13. e5 {[%emt 0:04:55]} Nd5 {[%emt 0:00:41]} 14. Nb3 {[%emt 0:00:28]} Be7 {[%emt 0:04:53]} 15. Qe4 {[%emt 0:03:30]} g6 {[%emt 0:05:36]} 16. Rd1 {[%emt 0:07:36]} Qc7 {[%emt 0:08:35]} 17. Re1 {[%emt 0:08:07]} Rfd8 {[%emt 0:19:07]} 18. Bb1 {[%emt 0:08:00]} Nc3 {[%emt 0:08:02]} 19. bxc3 {[%emt 0:06:23]} Nd4 {[%emt 0:00:09]} 20. Qxd4 {[%emt 0:03:02]} Rxd4 {[%emt 0:00:05]} 21. cxd4 {[%emt 0:01:11]} Bd5 {[%emt 0:02:30]} 22. Nfd2 {[%emt 0:03:05]} Rc8 {[%emt 0:06:08]} 23. Bb2 {[%emt 0:02:08]} Bg5 {[%emt 0:07:36]} 24. Rc1 {[%emt 0:02:51]} Qb7 {[%emt 0:01:00]} 25. Rxc8+ {[%emt 0:01:03]} Qxc8 {[%emt 0:00:06]} 26. Bd3 {[%emt 0:02:45]} Qc6 {[%emt 0:05:11]} 27. f3 {[%emt 0:02:46]} Bxb3 {[%emt 0:04:07]} 28. Nxb3 {[%emt 0:00:19]} Qd5 {[%emt 0:00:04]} 29. Nc1 {[%emt 0:31:30]} Bxc1 {[%emt 0:00:25]} 30. Rxc1 {[%emt 0:04:44]} Qb3 {[%emt 0:00:08]} 31. Bxa6 {[%emt 0:03:01]} Qxb2 {[%emt 0:00:06]} 32. Rd1 {[%emt 0:00:10]} Qc2 {[%emt 0:00:08]} 33. Ra1 {[%emt 0:00:53]} b3 {[%emt 0:00:09]} 34. Bd3 {[%emt 0:00:24]} b2 {[%emt 0:00:22]} 35. Bxc2 {[%emt 0:00:21]} bxa1=Q+ {[%emt 0:00:04]} 0-1

[Event "EYCC Open-U10 2019"]
[Site "Bratislava"]
[Date "2019.08.07"]
[Round "6.37"]
[White "Perossa, Nicolas"]
[Black "Morozov, Saveliy"]
[Result "1/2-1/2"]
[ECO "B32"]
[WhiteElo "1661"]
[BlackElo "1278"]
[Annotator "NA"]
[PlyCount "66"]
[EventDate "2019.08.02"]
[EventType "swiss"]
[EventCountry "SVK"]
[SourceTitle "playchess.com"]
[Source "ChessBase"]
[SourceQuality "1"]
[TimeControl "40/5400+30:1800+30"]

1. e4 {[%emt 0:00:00]} c5 {[%emt 0:00:00]} 2. Nf3 {[%emt 0:00:00]} Nc6 {[%emt 0:00:00]} 3. d4 {[%emt 0:00:00]} cxd4 {[%emt 0:00:00]} 4. Nxd4 {[%emt 0:00:00]} g6 {[%emt 0:00:00]} 5. c3 {[%emt 0:00:49]} Bg7 {[%emt 0:01:50]} 6. Be3 {[%emt 0:00:54]} Nf6 {[%emt 0:01:14]} 7. f3 {[%emt 0:02:39]} O-O {[%emt 0:00:07]} 8. Be2 {[%emt 0:00:31]} d5 {[%emt 0:14:50]} 9. exd5 {[%emt 0:15:07]} Nxd5 {[%emt 0:01:09]} 10. Nxc6 {[%emt 0:00:05]} bxc6 {[%emt 0:00:13]} 11. Bd2 Qb6 {[%emt 0:01:03]} 12. Qb3 {[%emt 0:04:19]} Qc7 {[%emt 0:01:36]} 13. Qc2 {[%emt 0:02:28]} Rd8 {[%emt 0:00:41]} 14. O-O {[%emt 0:02:35]} Bf5 {[%emt 0:00:21]} 15. Qc1 {[%emt 0:00:22]} Rab8 {[%emt 0:01:50]} 16. b3 {[%emt 0:03:24]} Be5 {[%emt 0:13:53]} 17. f4 {[%emt 0:05:02]} Bg7 {[%emt 0:01:32]} 18. Bc4 {[%emt 0:22:21]} Qd6 {[%emt 0:01:27]} 19. Qa3 {[%emt 0:01:07]} Qxa3 {[%emt 0:00:54]} 20. Nxa3 {[%emt 0:00:00]} Bxc3 {[%emt 0:00:48]} 21. Bxc3 {[%emt 0:00:45]} Nxc3 {[%emt 0:00:10]} 22. Rfc1 {[%emt 0:01:15]} Nd5 {[%emt 0:16:05]} 23. g3 {[%emt 0:11:01]} Nb4 {[%emt 0:00:16]} 24. Bf1 {[%emt 0:01:00]} Rd2 {[%emt 0:04:14]} 25. Nc4 {[%emt 0:01:08]} Rxa2 {[%emt 0:00:43]} 26. Rxa2 {[%emt 0:00:05]} Nxa2 {[%emt 0:00:45]} 27. Ra1 {[%emt 0:00:06]} Nc3 {[%emt 0:00:49]} 28. Rxa7 {[%emt 0:00:28]} Nd5 {[%emt 0:01:22]} 29. Na5 {[%emt 0:06:41]} Rc8 {[%emt 0:16:05]} 30. Ba6 {[%emt 0:06:05]} Rc7 {[%emt 0:00:30]} 31. Rb7 {[%emt 0:01:30]} Be6 {[%emt 0:01:15]} 32. Rb8+ {[%emt 0:01:43]} Kg7 {[%emt 0:00:07]} 33. Bc4 {[%emt 0:01:35]} h5 {[%emt 0:10:45]} 1/2-1/2